fUST/lending_fUST_20250616
["ID","MTS","AMOUNT","RATE_DAILY","PERIOD"]
[366152350,1750089048254,-1086.54,0.00020273,4]
[366152351,1750089048264,-460.0,0.00020273,4]
[366152352,1750089048274,-460.0,0.00020273,4]
[366152353,1750089048283,-1778.22,0.00020273,4]
[366152354,1750089048294,-460.0,0.00020273,4]
[366152355,1750089048303,-460.0,0.00020273,4]
[366152356,1750089048313,-1733.7,0.00020273,4]
[366152357,1750089048323,-2444.59,0.00020273,4]
[366152358,1750089048333,-460.0,0.00020273,4]
[366152359,1750089048344,-460.0,0.00020273,4]
[366152360,1750089048354,-460.0,0.00020273,4]
[366152361,1750089048365,-460.0,0.00020273,4]
[366152362,1750089048374,-460.0,0.00020273,4]
[366152363,1750089048384,-460.0,0.00020273,4]
[366152364,1750089048394,-500.0,0.00020299,4]
[366152365,1750089048404,-500.0,0.00020299,4]
[366152366,1750089048414,-607.14073036,0.00020299,4]
[366152367,1750089048425,-1428.76243155,0.00020417,3]
[366152369,1750089048436,-166.13,0.000205,2]
[366152370,1750089048446,-2614.14,0.00020538,3]
[366152371,1750089048456,-1307.06,0.00020538,3]
[366152372,1750089048466,-653.54,0.00020538,3]
[366152373,1750089048476,-326.76,0.00020538,3]
[366152374,1750089048487,-495.58,0.00020538,3]
[366152375,1750089048496,-500.0,0.00020547,2]
[366152376,1750089048507,-420.0,0.00020547,4]
[366152377,1750089048517,-460.0,0.00020547,4]
[366152378,1750089048526,-460.0,0.00020547,4]
[366152379,1750089048536,-460.0,0.00020547,4]
[366152380,1750089048547,-460.0,0.00020547,4]
[366152381,1750089048557,-396.41042592,0.00020547,4]
[366152382,1750089048567,-460.0,0.00020547,4]
[366152383,1750089048578,-460.0,0.00020547,4]
[366152384,1750089048588,-460.0,0.00020547,4]
[366152385,1750089048598,-460.0,0.00020547,4]
[366152386,1750089048608,-460.0,0.00020547,4]
[366152387,1750089048619,-460.0,0.00020547,4]
[366152388,1750089048629,-294.07415984,0.00020547,4]
[366152389,1750089048639,-460.0,0.00020547,2]
[366152390,1750089048649,-464.9222876,0.00020547,4]
[366152391,1750089048659,-460.0,0.00020547,4]
[366152392,1750089048670,-482.2795677,0.00020547,4]
[366152393,1750089048682,-460.0,0.00020547,4]
[366152394,1750089048692,-460.0,0.00020547,4]
[366152395,1750089048702,-300.0,0.00020547,4]
[366152396,1750089048713,-460.0,0.00020547,4]
[366152397,1750089048723,-438.82647798,0.00020547,4]
[366152398,1750089048736,-460.0,0.00020547,4]
[366152399,1750089048746,-460.0,0.00020547,4]
[366152400,1750089048756,-166.149474,0.00020547,4]
[366152401,1750089048767,-460.0,0.00020547,4]
[366152402,1750089048777,-460.0,0.00020547,4]
[366152403,1750089048789,-460.0,0.00020547,4]
[366152404,1750089048799,-460.0,0.00020547,4]
[366152405,1750089048812,-465.97800127,0.00020547,4]
[366152406,1750089048824,-438.82236216,0.00020547,4]
[366152407,1750089048835,-1881.63,0.00020547,4]
[366152408,1750089048845,-460.0,0.00020547,4]
[366152409,1750089048856,-460.0,0.00020547,4]
[366152410,1750089048866,-530.63,0.00020547,4]
[366152411,1750089048877,-228.78,0.00020547,4]
[366152412,1750089048887,-460.0,0.00020547,4]
[366152413,1750089048898,-268.72212638,0.00020547,4]
[366152414,1750089048909,-460.0,0.00020547,4]
[366152415,1750089048918,-525.3,0.00020547,4]
[366152416,1750089048928,-2532.74,0.00020547,4]
[366152417,1750089048939,-1369.72,0.00020547,4]
[366152418,1750089048950,-460.0,0.00020547,4]
[366152419,1750089048960,-1914.59,0.00020547,4]
[366152420,1750089048970,-460.0,0.00020547,4]
[366152421,1750089048980,-903.02,0.00020547,4]
[366152422,1750089048990,-460.0,0.00020547,4]
[366152423,1750089049000,-460.0,0.00020547,4]
[366152424,1750089049010,-531.98,0.00020547,4]
[366152425,1750089049020,-901.41,0.00020547,4]
[366152426,1750089049030,-795.13,0.00020547,4]
[366152427,1750089049041,-288.67748286,0.00020547,4]
[366152428,1750089049052,-829.83,0.00020547,4]
[366152429,1750089049062,-460.0,0.00020547,4]
[366152431,1750089049072,-460.0,0.00020547,4]
[366152432,1750089049082,-460.0,0.00020547,4]
[366152433,1750089049092,-460.0,0.00020547,4]
[366152434,1750089049104,-440.0,0.00020547,4]
[366152435,1750089049114,-460.0,0.00020547,4]
[366152436,1750089049125,-460.0,0.00020547,4]
[366152437,1750089049135,-460.0,0.00020547,4]
[366152438,1750089049145,-460.0,0.00020547,4]
[366152439,1750089049155,-1499.04,0.00020547,4]
[366152440,1750089049165,-460.0,0.00020547,4]
[366152441,1750089049176,-597.29,0.00020547,4]
[366152442,1750089049187,-925.29,0.00020547,4]
[366152443,1750089049198,-460.0,0.00020547,4]
[366152444,1750089049208,-460.0,0.00020547,4]
[366152445,1750089049219,-520.15,0.00020547,4]
[366152446,1750089049229,-460.0,0.00020547,4]
[366152447,1750089049367,-460.0,0.00020547,4]
[366152448,1750089049381,-416.79259079,0.00020547,4]
[366152449,1750089049391,-460.0,0.00020547,4]
[366152450,1750089049401,-460.0,0.00020547,4]
[366152451,1750089049411,-460.0,0.00020547,4]
[366152452,1750089049421,-460.0,0.00020547,4]
[366152453,1750089049431,-3579.55,0.00020547,4]
[366152454,1750089049441,-460.0,0.00020547,4]
[366152455,1750089049451,-1086.54,0.00020547,4]
[366152456,1750089049461,-460.0,0.00020547,4]
[366152457,1750089049471,-460.0,0.00020547,4]
[366152458,1750089049481,-460.0,0.00020547,4]
[366152459,1750089049490,-460.0,0.00020547,4]
[366152460,1750089049500,-1778.22,0.00020547,4]
[366152461,1750089049510,-1733.7,0.00020547,4]
[366152462,1750089049520,-2444.59,0.00020547,4]
[366152463,1750089049530,-460.0,0.00020547,4]
[366152464,1750089049540,-460.0,0.00020547,4]
[366152465,1750089049549,-460.0,0.00020547,4]
[366152466,1750089049560,-460.0,0.00020547,4]
[366152467,1750089049570,-460.0,0.00020547,4]
[366152468,1750089049579,-460.0,0.00020547,4]
[366152469,1750089049588,-3063.93,0.00020582,2]
[366152470,1750089049598,-160.0,0.0002059,3]
[366152471,1750089049608,-12537.89035583,0.0002059,3]
[366152472,1750089049618,-1428.76243155,0.0002059,3]
[366152473,1750089049632,-845.47092152,0.0002059,3]
[366152474,1750089049644,-160.0,0.0002059,3]
[366152475,1750089049654,-213.36025772,0.0002059,3]
[366152476,1750089049664,-1428.76243155,0.00020762,3]
[366152477,1750089049673,-160.0,0.00020797,2]
[366152478,1750089049684,-845.47092152,0.00020797,2]
[366152479,1750089049698,-160.0,0.00020797,2]
[366152480,1750089049708,-160.0,0.00020797,2]
[366152481,1750089049718,-229.90125484,0.00020797,2]
[366152482,1750089049728,-213.36025772,0.00020797,2]
[366152483,1750089049740,-835.67987521,0.00020797,2]
[366152484,1750089049749,-424.54874296,0.00020797,2]
[366152485,1750089049759,-12537.89035583,0.00020802,2]
[366152486,1750089049769,-1526.91160882,0.00020816,2]
[366152487,1750089049779,-460.0,0.00020821,4]
[366152488,1750089049788,-460.0,0.00020821,4]
[366152489,1750089049797,-460.0,0.00020821,4]
[366152490,1750089049807,-460.0,0.00020821,4]
[366152491,1750089049817,-440.0,0.00020821,4]
[366152492,1750089049828,-460.0,0.00020821,4]
[366152493,1750089049838,-460.0,0.00020821,4]
[366152494,1750089049848,-460.0,0.00020821,4]
[366152495,1750089049858,-460.0,0.00020821,4]
[366152496,1750089049869,-460.0,0.00020821,4]
[366152497,1750089049878,-460.0,0.00020821,2]
[366152498,1750089049888,-460.0,0.00020821,4]
[366152499,1750089049898,-460.0,0.00020821,4]
[366152500,1750089049908,-204.9841689,0.00020821,4]
[366152501,1750089049918,-460.0,0.00020821,4]
[366152502,1750089049928,-548.81342715,0.00020821,4]
[366152503,1750089049939,-440.0,0.00020821,4]
[366152504,1750089049950,-460.0,0.00020821,4]
[366152505,1750089049960,-460.0,0.00020821,4]
[366152506,1750089049970,-460.0,0.00020821,4]
[366152507,1750089049980,-1881.63,0.00020821,4]
[366152508,1750089049990,-421.41870324,0.00020821,4]
[366152509,1750089050001,-460.0,0.00020821,4]
[366152510,1750089050011,-530.63,0.00020821,4]
[366152511,1750089050021,-460.0,0.00020821,4]
[366152512,1750089050031,-460.0,0.00020821,4]
[366152513,1750089050041,-2532.74,0.00020821,4]
[366152514,1750089050051,-525.3,0.00020821,4]
[366152515,1750089050061,-1369.72,0.00020821,4]
[366152516,1750089050071,-460.0,0.00020821,4]
[366152517,1750089050081,-1914.59,0.00020821,4]
[366152518,1750089050090,-460.0,0.00020821,4]
[366152519,1750089050100,-903.02,0.00020821,4]
[366152520,1750089050111,-460.0,0.00020821,4]
[366152521,1750089050120,-460.0,0.00020821,4]
[366152522,1750089050130,-531.98,0.00020821,4]
[366152523,1750089050140,-901.41,0.00020821,4]
[366152524,1750089050150,-795.13,0.00020821,4]
[366152525,1750089050159,-829.83,0.00020821,4]
[366152526,1750089050168,-460.0,0.00020821,4]
[366152527,1750089050179,-510.64891602,0.00020821,4]
[366152528,1750089050189,-460.0,0.00020821,4]
[366152529,1750089050199,-460.0,0.00020821,4]
[366152530,1750089050209,-460.0,0.00020821,4]
[366152531,1750089050219,-460.0,0.00020821,4]
[366152532,1750089050229,-460.0,0.00020821,4]
[366152533,1750089050238,-460.0,0.00020821,4]
[366152534,1750089050248,-1499.04,0.00020821,4]
[366152535,1750089050257,-597.29,0.00020821,4]
[366152536,1750089050267,-925.29,0.00020821,4]
[366152537,1750089050276,-460.0,0.00020821,4]
[366152538,1750089050286,-460.0,0.00020821,4]
[366152539,1750089050296,-520.15,0.00020821,4]
[366152540,1750089050306,-460.0,0.00020821,4]
[366152541,1750089050315,-460.0,0.00020821,4]
[366152542,1750089050326,-460.0,0.00020821,4]
[366152543,1750089050336,-460.0,0.00020821,4]
[366152544,1750089050345,-460.0,0.00020821,4]
[366152545,1750089050355,-460.0,0.00020821,4]
[366152546,1750089050365,-3579.55,0.00020821,4]
[366152547,1750089050376,-460.0,0.00020821,4]
[366152548,1750089050386,-1086.54,0.00020821,4]
[366152549,1750089050396,-460.0,0.00020821,4]
[366152550,1750089050406,-460.0,0.00020821,4]
[366152551,1750089050416,-460.0,0.00020821,4]
[366152552,1750089050425,-460.0,0.00020821,4]
[366152553,1750089050436,-1778.22,0.00020821,4]
[366152554,1750089050446,-1733.7,0.00020821,4]
[366152555,1750089050455,-2444.59,0.00020821,4]
[366152556,1750089050465,-460.0,0.00020821,4]
[366152557,1750089050475,-460.0,0.00020821,4]
[366152558,1750089050484,-460.0,0.00020821,4]
[366152559,1750089050494,-460.0,0.00020821,4]
[366152560,1750089050504,-555.67,0.00020821,4]
[366152561,1750089050513,-460.0,0.00020821,4]
[366152562,1750089050523,-300.0,0.00020926,2]
[366152563,1750089050533,-1428.76243155,0.00020934,4]
[366152564,1750089050543,-500.0,0.00021093,2]
[366152565,1750089050553,-500.0,0.00021093,2]
[366152566,1750089050563,-196.65748895,0.00021093,2]
[366152567,1750089050572,-260.41176053,0.00021093,2]
[366152568,1750089050582,-500.0,0.00021093,2]
[366152569,1750089050591,-500.0,0.00021093,2]
[366152570,1750089050601,-500.0,0.00021093,2]
[366152571,1750089050610,-500.0,0.00021093,2]
[366152572,1750089050619,-500.0,0.00021093,2]
[366152573,1750089050630,-175.0,0.00021094,2]
[366152574,1750089050640,-265.64,0.00021095,4]
[366152575,1750089050649,-176.30243607,0.00021095,4]
[366152576,1750089050659,-460.0,0.00021095,4]
[366152577,1750089050669,-460.0,0.00021095,4]
[366152578,1750089050678,-460.0,0.00021095,4]
[366152579,1750089050688,-460.0,0.00021095,4]
[366152580,1750089050697,-327.82737445,0.00021095,4]
[366152581,1750089050707,-283.83542508,0.00021095,4]
[366152582,1750089050716,-460.0,0.00021095,4]
[366152583,1750089050726,-460.0,0.00021095,2]
[366152584,1750089050740,-460.0,0.00021095,4]
[366152585,1750089050749,-460.0,0.00021095,4]
[366152586,1750089050759,-460.0,0.00021095,4]
[366152587,1750089050770,-460.0,0.00021095,4]
[366152588,1750089050779,-460.0,0.00021095,4]
[366152589,1750089050789,-230.0,0.00021095,4]
[366152590,1750089050799,-1881.63,0.00021095,4]
[366152591,1750089050811,-460.0,0.00021095,4]
[366152592,1750089050821,-530.63,0.00021095,4]
[366152593,1750089050831,-460.0,0.00021095,4]
[366152594,1750089050841,-557.62302278,0.00021095,4]
[366152595,1750089050850,-2532.74,0.00021095,4]
[366152596,1750089050860,-525.3,0.00021095,4]
[366152597,1750089050870,-1369.72,0.00021095,4]
[366152598,1750089050880,-460.0,0.00021095,4]
[366152599,1750089050890,-1914.59,0.00021095,4]
[366152600,1750089050899,-460.0,0.00021095,4]
[366152601,1750089050909,-903.02,0.00021095,4]
[366152602,1750089050919,-460.0,0.00021095,4]
[366152603,1750089050928,-460.0,0.00021095,4]
[366152604,1750089050938,-531.98,0.00021095,4]
[366152605,1750089050948,-901.41,0.00021095,4]
[366152606,1750089050958,-795.13,0.00021095,4]
[366152607,1750089050967,-829.83,0.00021095,4]
[366152608,1750089050978,-290.0,0.00021095,4]
[366152609,1750089050987,-460.0,0.00021095,4]
[366152610,1750089050997,-460.0,0.00021095,4]
[366152611,1750089051006,-460.0,0.00021095,4]
[366152612,1750089051016,-460.0,0.00021095,4]
[366152613,1750089051025,-459.45,0.00021095,4]
[366152614,1750089051035,-460.0,0.00021095,4]
[366152615,1750089051045,-1499.04,0.00021095,4]
[366152616,1750089051054,-597.29,0.00021095,4]
[366152617,1750089051064,-925.29,0.00021095,4]
[366152618,1750089051074,-460.0,0.00021095,4]
[366152619,1750089051083,-460.0,0.00021095,4]
[366152620,1750089051092,-520.15,0.00021095,4]
[366152621,1750089051103,-460.0,0.00021095,4]
[366152622,1750089051112,-575.71113709,0.00021095,4]
[366152623,1750089051121,-282.54884183,0.00021095,4]
[366152624,1750089051130,-460.0,0.00021095,4]
[366152625,1750089051140,-347.47571144,0.00021095,4]
[366152626,1750089051149,-460.0,0.00021095,4]
[366152627,1750089051158,-3579.55,0.00021095,4]
[366152628,1750089051168,-460.0,0.00021095,4]
[366152629,1750089051178,-1086.54,0.00021095,4]
[366152630,1750089051187,-460.0,0.00021095,4]
[366152631,1750089051197,-460.0,0.00021095,4]
[366152632,1750089051206,-460.0,0.00021095,4]
[366152633,1750089051217,-381.74798141,0.00021095,4]
[366152634,1750089051227,-1778.22,0.00021095,4]
[366152635,1750089051237,-1733.7,0.00021095,4]
[366152636,1750089051247,-2444.59,0.00021095,4]
[366152637,1750089051256,-169.71137136,0.00021095,4]
[366152638,1750089051266,-460.0,0.00021095,4]
[366152639,1750089051275,-460.0,0.00021095,4]
[366152640,1750089051285,-460.0,0.00021095,4]
[366152641,1750089051294,-1428.76243155,0.00021107,4]
[366152642,1750089051304,-500.0,0.00021114,2]
[366152643,1750089051313,-258.83221016,0.00021114,2]
[366152644,1750089051323,-23371.71174136,0.0002113,2]
[366152645,1750089051333,-5000.0,0.0002113,2]
[366152646,1750089051346,-1688.0,0.0002113,2]
[366152647,1750089051356,-500.0,0.0002113,2]
[366152648,1750089051365,-500.0,0.0002113,2]
[366152649,1750089051375,-500.0,0.0002113,2]
[366152650,1750089051384,-500.0,0.0002113,2]
[366152651,1750089051394,-500.0,0.0002113,2]
[366152652,1750089051404,-500.0,0.0002113,2]
[366152653,1750089051413,-500.0,0.0002113,2]
[366152654,1750089051424,-500.0,0.0002113,2]
[366152655,1750089051434,-500.0,0.0002113,2]
[366152656,1750089051444,-500.0,0.0002113,2]
[366152657,1750089051456,-500.0,0.0002113,2]
[366152658,1750089051465,-500.0,0.0002113,2]
[366152659,1750089051475,-500.0,0.0002113,2]
[366152660,1750089051487,-500.0,0.0002113,2]
[366152661,1750089051496,-500.0,0.0002113,2]
[366152662,1750089051505,-500.0,0.0002113,2]
[366152663,1750089051515,-207.4,0.0002113,2]
[366152664,1750089051525,-500.0,0.0002113,2]
[366152665,1750089051535,-500.0,0.0002113,2]
[366152666,1750089051544,-500.0,0.0002113,2]
[366152667,1750089051553,-500.0,0.0002113,2]
[366152668,1750089051563,-500.0,0.0002113,2]
[366152669,1750089051572,-500.0,0.0002113,2]
[366152670,1750089051698,-500.0,0.0002113,2]
[366152671,1750089051709,-500.0,0.0002113,2]
[366152672,1750089051718,-500.0,0.0002113,2]
[366152673,1750089051731,-500.0,0.0002113,2]
[366152674,1750089051741,-500.0,0.0002113,2]
[366152675,1750089051750,-500.0,0.0002113,2]
[366152676,1750089051760,-500.0,0.0002113,2]
[366152677,1750089051771,-500.0,0.0002113,2]
[366152678,1750089051781,-205.20717995,0.00021138,2]
[366152679,1750089051792,-1750.456,0.00021185,2]
[366152680,1750089051803,-1815.222872,0.0002124,2]
[366152681,1750089051813,-201.86789802,0.00021262,2]
[366152682,1750089051823,-500.0,0.00021262,2]
[366152683,1750089051833,-500.0,0.00021262,2]
[366152684,1750089051843,-500.0,0.00021262,2]
[366152685,1750089051852,-500.0,0.00021262,2]
[366152686,1750089051863,-500.0,0.00021262,2]
[366152687,1750089051872,-500.0,0.00021262,2]
[366152688,1750089051882,-500.94760593,0.00021262,2]
[366152689,1750089051891,-500.0,0.00021262,2]
[366152690,1750089051901,-500.0,0.00021262,2]
[366152691,1750089051911,-1428.76243155,0.00021279,5]
[366152692,1750089051921,-1882.38611826,0.00021295,2]
[366152693,1750089051931,-500.0,0.00021332,2]
[366152694,1750089051940,-500.0,0.00021332,2]
[366152695,1750089051949,-500.0,0.00021332,2]
[366152696,1750089051959,-500.0,0.00021332,2]
[366152697,1750089051968,-501.1678591,0.00021332,2]
[366152698,1750089051978,-502.36907748,0.00021332,2]
[366152699,1750089051988,-500.0,0.00021332,2]
[366152700,1750089051998,-1952.03440464,0.0002135,2]
[366152701,1750089052008,-160.0,0.00021369,4]
[366152702,1750089052017,-220.0,0.00021369,4]
[366152703,1750089052027,-509.46,0.00021369,4]
[366152704,1750089052036,-460.0,0.00021369,4]
[366152705,1750089052045,-460.0,0.00021369,4]
[366152706,1750089052055,-460.0,0.00021369,2]
[366152707,1750089052065,-460.0,0.00021369,4]
[366152708,1750089052074,-460.0,0.00021369,4]
[366152709,1750089052084,-529.42592196,0.00021369,4]
[366152710,1750089052094,-460.0,0.00021369,4]
[366152711,1750089052104,-460.0,0.00021369,4]
[366152712,1750089052118,-1881.63,0.00021369,4]
[366152713,1750089052127,-460.0,0.00021369,4]
[366152714,1750089052137,-530.63,0.00021369,4]
[366152715,1750089052146,-164.06266182,0.00021369,4]
[366152716,1750089052156,-2532.74,0.00021369,4]
[366152717,1750089052165,-525.3,0.00021369,4]
[366152718,1750089052174,-1369.72,0.00021369,4]
[366152719,1750089052184,-460.0,0.00021369,4]
[366152720,1750089052194,-1914.59,0.00021369,4]
[366152721,1750089052203,-460.0,0.00021369,4]
[366152722,1750089052212,-903.02,0.00021369,4]
[366152723,1750089052222,-460.0,0.00021369,4]
[366152724,1750089052231,-460.0,0.00021369,4]
[366152725,1750089052240,-531.98,0.00021369,4]
[366152726,1750089052249,-901.41,0.00021369,4]
[366152727,1750089052262,-795.13,0.00021369,4]
[366152728,1750089052271,-829.83,0.00021369,4]
[366152729,1750089052281,-460.0,0.00021369,4]
[366152730,1750089052291,-460.0,0.00021369,4]
[366152731,1750089052301,-460.0,0.00021369,4]
[366152732,1750089052311,-460.0,0.00021369,4]
[366152733,1750089052321,-460.0,0.00021369,4]
[366152734,1750089052330,-1499.04,0.00021369,4]
[366152735,1750089052340,-597.29,0.00021369,4]
[366152736,1750089052350,-925.29,0.00021369,4]
[366152737,1750089052360,-460.0,0.00021369,4]
[366152738,1750089052370,-460.0,0.00021369,4]
[366152739,1750089052379,-520.15,0.00021369,4]
[366152740,1750089052389,-415.4555813,0.00021369,4]
[366152741,1750089052399,-460.0,0.00021369,4]
[366152742,1750089052409,-460.0,0.00021369,4]
[366152743,1750089052419,-3579.55,0.00021369,4]
[366152744,1750089052428,-460.0,0.00021369,4]
[366152745,1750089052438,-1086.54,0.00021369,4]
[366152746,1750089052448,-286.19,0.00021369,4]
[366152747,1750089052458,-460.0,0.00021369,4]
[366152748,1750089052467,-460.0,0.00021369,4]
[366152749,1750089052477,-1778.22,0.00021369,4]
[366152750,1750089052486,-1733.7,0.00021369,4]
[366152751,1750089052496,-2444.59,0.00021369,4]
[366152752,1750089052506,-460.0,0.00021369,4]
[366152753,1750089052515,-460.0,0.00021369,4]
[366152754,1750089052525,-460.0,0.00021369,4]
[366152755,1750089052534,-2024.25967761,0.00021405,2]
[366152756,1750089052544,-1428.76243155,0.00021452,5]
[366152757,1750089052554,-2099.15728568,0.0002146,2]
[366152758,1750089052563,-175.0,0.00021512,2]
[366152759,1750089052573,-2176.82610525,0.00021515,2]
[366152760,1750089052583,-4595.9,0.00021518,2]
[366152761,1750089052592,-2257.36867115,0.0002157,2]
[366152762,1750089052602,-4000.0,0.00021595,4]
[366152763,1750089052612,-151.0,0.000216,3]
[366152764,1750089052622,-1428.76243155,0.00021624,5]
[366152765,1750089052631,-2340.89131198,0.00021625,2]
[366152766,1750089052641,-500.0,0.00021626,2]
[366152767,1750089052651,-500.0,0.00021626,2]
[366152768,1750089052660,-516.47411252,0.00021641,2]
[366152769,1750089052670,-1000.0,0.00021641,2]
[366152770,1750089052680,-500.0,0.00021641,2]
[366152771,1750089052689,-500.0,0.00021641,2]
[366152772,1750089052699,-1000.0,0.00021641,2]
[366152773,1750089052708,-500.0,0.00021641,2]
[366152774,1750089052717,-160.0,0.00021642,2]
[366152775,1750089052728,-460.0,0.00021643,4]
[366152776,1750089052741,-460.0,0.00021643,4]
[366152777,1750089052751,-460.0,0.00021643,2]
[366152778,1750089052760,-460.0,0.00021643,4]
[366152779,1750089052771,-460.0,0.00021643,4]
[366152780,1750089052782,-460.0,0.00021643,4]
[366152781,1750089052792,-534.52780888,0.00021643,4]
[366152782,1750089052801,-1881.63,0.00021643,4]
[366152783,1750089052813,-460.0,0.00021643,4]
[366152784,1750089052823,-530.63,0.00021643,4]
[366152785,1750089052832,-2532.74,0.00021643,4]
[366152786,1750089052842,-525.3,0.00021643,4]
[366152787,1750089052852,-1369.72,0.00021643,4]
[366152788,1750089052861,-1914.59,0.00021643,4]
[366152789,1750089052873,-460.0,0.00021643,4]
[366152790,1750089052883,-903.02,0.00021643,4]
[366152791,1750089052893,-460.0,0.00021643,4]
[366152792,1750089052903,-510.74205213,0.00021643,4]
[366152793,1750089052912,-531.98,0.00021643,4]
[366152794,1750089052922,-901.41,0.00021643,4]
[366152795,1750089052932,-795.13,0.00021643,4]
[366152796,1750089052942,-829.83,0.00021643,4]
[366152797,1750089052952,-460.0,0.00021643,4]
[366152798,1750089052962,-460.0,0.00021643,4]
[366152799,1750089052971,-460.0,0.00021643,4]
[366152800,1750089052981,-460.0,0.00021643,4]
[366152801,1750089052991,-460.0,0.00021643,4]
[366152802,1750089053001,-1499.04,0.00021643,4]
[366152803,1750089053011,-597.29,0.00021643,4]
[366152804,1750089053020,-925.29,0.00021643,4]
[366152805,1750089053029,-460.0,0.00021643,4]
[366152806,1750089053039,-460.0,0.00021643,4]
[366152807,1750089053049,-520.15,0.00021643,4]
[366152808,1750089053059,-460.0,0.00021643,4]
[366152809,1750089053070,-460.0,0.00021643,4]
[366152810,1750089053079,-3579.55,0.00021643,4]
[366152811,1750089053089,-460.0,0.00021643,4]
[366152812,1750089053100,-1086.54,0.00021643,4]
[366152813,1750089053110,-460.0,0.00021643,4]
[366152814,1750089053120,-460.0,0.00021643,4]
[366152815,1750089053130,-1778.22,0.00021643,4]
[366152816,1750089053140,-1733.7,0.00021643,4]
[366152817,1750089053149,-2444.59,0.00021643,4]
[366152818,1750089053158,-460.0,0.00021643,4]
[366152819,1750089053168,-460.0,0.00021643,4]
[366152820,1750089053178,-460.0,0.00021643,4]
[366152821,1750089053190,-500.0,0.0002166,2]
[366152822,1750089053199,-500.0,0.0002166,2]
[366152823,1750089053208,-500.0,0.0002166,2]
[366152824,1750089053218,-1000.0,0.00021662,2]
[366152825,1750089053228,-573.8401486,0.00021673,2]
[366152826,1750089053237,-600.0,0.00021673,2]
[366152827,1750089053247,-500.0,0.00021673,2]
[366152828,1750089053256,-526.92702148,0.00021673,2]
[366152829,1750089053266,-500.0,0.00021673,2]
[366152830,1750089053276,-500.0,0.00021673,2]
[366152831,1750089053286,-500.0,0.00021673,2]
[366152832,1750089053296,-152.91354487,0.00021673,2]
[366152833,1750089053306,-500.0,0.00021673,2]
[366152834,1750089053316,-502.67521021,0.00021673,2]
[366152835,1750089053326,-500.0,0.00021673,2]
[366152836,1750089053336,-500.0,0.00021673,2]
[366152837,1750089053347,-243.40682598,0.00021673,2]
[366152838,1750089053357,-500.0,0.00021673,2]
[366152839,1750089053367,-5000.0,0.00021678,2]
[366152840,1750089053377,-2427.50429052,0.0002168,2]
[366152841,1750089053386,-321001.32334315,0.0002169,2]
[366152842,1750089053397,-175.0,0.00021699,2]
[366152843,1750089053406,-963.0,0.00021712,2]
[366152844,1750089053416,-500.0,0.00021733,2]
[366152845,1750089053425,-2517.32194927,0.00021735,2]
[366152846,1750089053436,-2279.07468634,0.0002179,2]
[366152847,1750089053445,-500.0,0.0002179,2]
[366152848,1750089053455,-1428.76243155,0.00021797,6]
[366152849,1750089053465,-1000.72314247,0.00021809,2]
[366152850,1750089053475,-405.86013099,0.00021809,2]
[366152851,1750089053484,-500.0,0.00021809,2]